bitfinex/quotes_ETHUSD_20230830
["timestamp","ask_amount","ask_price","bid_price","bid_amount"]
[1693407554835,11.73116,1704.9,1704.5,5.86666]
[1693407555372,22.47722065,1704.9,1704.3,8.48168]
[1693407555514,22.47722065,1704.9,1704.4,5.86709]
[1693407556146,5.86621,1704.7,1704.4,5.86713]
[1693407557220,11.73196,1704.8,1704.4,5.86713]
[1693407559157,5.86595,1704.8,1704.4,13.73429]
[1693407559717,5.86595,1704.8,1704.4,19.60145]
[1693407560168,32.1691,1705.1,1704.4,19.60145]
[1693407560321,29.98,1705.1,1704.6,25.71867]
[1693407560543,29.98,1705.1,1704.6,34.45842065]
[1693407561336,29.98,1705.1,1704.6,25.46494]
[1693407561846,29.98,1705.1,1704.6,13.7324]
[1693407562055,41.70952,1705.1,1704.6,13.7324]
[1693407562843,41.70952,1705.1,1704.6,13.8883245]
[1693407563051,41.70952,1705.1,1704.6,5.8662]
[1693407563257,2.87348065,1705.0,1704.5,5.86665]
[1693407563457,19.60383,1704.9,1704.3,2.6144]
[1693407563628,25.31155972,1704.9,1704.3,8.48189]
[1693407563828,25.31155972,1704.9,1704.3,14.3494]
[1693407564053,20.43107907,1704.9,1704.3,14.3494]
[1693407564229,11.73122,1704.9,1704.3,20.21691]
[1693407564619,14.60470065,1704.9,1704.3,8.48189]
[1693407564824,2.007,1704.8,1704.3,2.6144]
[1693407565056,11.7326,1704.7,1704.3,8.48189]
[1693407565528,11.7326,1704.7,1704.3,14.3494]
[1693407565857,11.7326,1704.7,1704.3,10.8341422]
[1693407566157,11.7326,1704.7,1704.3,16.7016522]
[1693407566652,5.8663,1704.7,1704.3,16.7016522]
[1693407570141,11.7326,1704.7,1704.3,16.7016522]
[1693407572759,11.7326,1704.7,1704.3,14.3494]
[1693407573361,5.86601,1704.8,1704.3,20.21691]
[1693407573543,11.7312,1704.9,1704.3,20.21691]
[1693407574164,35.84489,1705.1,1704.4,13.00048065]
[1693407574455,35.84489,1705.1,1704.6,11.73288]
[1693407574657,35.84489,1705.1,1704.6,19.359292]
[1693407576161,29.98,1705.1,1704.6,19.359292]
[1693407576361,5.86483,1705.1,1704.6,17.59935]
[1693407576565,14.60314065,1705.1,1704.6,17.59935]
[1693407576739,2.007,1704.7,1704.2,7.86769]
[1693407576948,13.74016,1704.6,1704.2,2.0]
[1693407577148,13.74016,1704.6,1704.1,5.8681]
[1693407577474,13.74016,1704.6,1703.9,5.86872]
[1693407577475,22.48029065,1704.6,1703.9,5.86872]
[1693407577770,2.24802906,1704.5,1704.0,5.86842]
[1693407577947,5.86733,1704.4,1704.0,5.86842]
[1693407578138,5.86733,1704.4,1704.0,7.86842]
[1693407578345,5.86666,1704.6,1704.0,19.6055]
[1693407578655,5.86666,1704.6,1704.0,25.7255]
[1693407578854,5.86666,1704.6,1704.1,2.57255]
[1693407579057,11.73329,1704.6,1704.1,8.44048]
[1693407579573,11.73329,1704.6,1704.1,11.73613]
[1693407579767,11.73329,1704.6,1704.1,5.86793]
[1693407579973,20.47340065,1704.6,1704.0,5.86842]
[1693407580471,17.59992,1704.6,1704.0,8.60892]
[1693407580773,5.86663,1704.6,1704.1,2.0]
[1693407580972,16.01285265,1704.6,1704.0,8.60892]
[1693407581279,23.88632265,1704.6,1704.0,8.60892]
[1693407581434,2.87348065,1704.5,1704.0,8.60892]
[1693407581773,5.86733,1704.4,1704.0,8.60892]
[1693407581969,22.52279572,1704.4,1704.0,2.7405]
[1693407582274,2.007,1704.3,1704.0,2.7405]
[1693407582461,11.7357,1704.2,1704.0,2.7405]
[1693407582660,13.7427,1704.2,1703.6,7.86974]
[1693407582861,23.21802,1704.2,1703.7,2.6278]
[1693407583046,23.21802,1704.2,1703.7,8.49726]
[1693407583245,21.21102,1704.2,1703.7,8.49726]
[1693407583570,21.21102,1704.2,1703.7,2.6278]
[1693407584538,2.87348065,1704.1,1703.7,2.6278]
[1693407584771,5.86861,1704.0,1703.7,2.6278]
[1693407585472,11.73722,1704.0,1703.7,2.6278]
[1693407587677,5.86861,1704.0,1703.7,2.6278]
[1693407587879,5.86764,1704.3,1703.7,11.37082065]
[1693407587880,11.73548,1704.3,1703.7,11.37082065]
[1693407588094,38.84696,1704.5,1703.8,8.12]
[1693407588381,29.98,1704.5,1704.0,17.60553]
[1693407588557,5.86666,1704.6,1704.0,17.60553]
[1693407588758,11.73326,1704.6,1704.0,17.60553]
[1693407588949,11.73326,1704.6,1704.1,2.7014]
[1693407589146,11.73326,1704.6,1704.1,14.43752]
[1693407589385,11.73326,1704.6,1704.1,16.468123]
[1693407590248,5.8666,1704.6,1704.1,22.336323]
[1693407590443,5.86647,1704.6,1704.1,22.336323]
[1693407590794,39.32579428,1704.7,1704.1,24.343323]
[1693407590795,35.84633,1704.7,1704.1,24.343323]
[1693407590968,35.84633,1704.7,1704.1,22.336323]
[1693407591159,35.84633,1704.7,1704.2,2.2336323]
[1693407591361,35.84633,1704.7,1704.3,5.86733]
[1693407591583,5.86633,1704.7,1704.3,5.86733]
[1693407592416,2.2558,1704.8,1704.3,11.73484]
[1693407592591,2.60930465,1705.0,1704.4,8.99348065]
[1693407592592,5.86525,1705.0,1704.4,8.99348065]
[1693407592790,5.86525,1705.0,1704.5,6.76613807]
[1693407592791,11.73069,1705.0,1704.5,6.76613807]
[1693407593003,38.62160465,1705.1,1704.5,12.63295807]
[1693407593206,38.62160465,1705.1,1704.5,18.49977807]
[1693407593385,11.73022,1705.0,1704.6,2.7392]
[1693407593718,18.17739979,1705.0,1704.6,2.7392]
[1693407594512,12.31227979,1705.0,1704.6,4.27640181]
[1693407594714,11.73022,1705.0,1704.6,10.14285181]
[1693407594915,13.90437,1705.1,1704.6,18.00932181]
[1693407595607,25.83499144,1705.1,1704.6,2.7392]
[1693407595796,2.58905979,1705.0,1704.6,2.7392]
[1693407596114,2.58905979,1705.0,1704.4,5.86696]
[1693407596115,5.86551,1704.9,1704.4,5.86696]
[1693407596294,11.73102,1704.9,1704.5,5.86652]
[1693407596619,17.59653,1704.9,1704.4,2.6647]
[1693407596916,4.04658265,1704.8,1704.4,2.6647]
[1693407597097,19.6056,1704.7,1704.4,2.6647]
[1693407597614,20.18765979,1704.7,1704.0,13.73683]
[1693407597816,23.06114044,1704.7,1704.0,13.73683]
[1693407598133,26.13146578,1704.7,1704.0,15.74485009]
[1693407598884,23.25798513,1704.7,1704.0,24.48687074]
[1693407599086,24.92462534,1704.7,1704.0,24.48687074]
[1693407599311,24.92462534,1704.7,1704.0,30.60687074]
[1693407599724,24.92462534,1704.7,1704.1,2.6811]
[1693407599915,22.91762534,1704.7,1704.1,17.74597707]
[1693407600627,19.8473,1704.7,1704.1,17.74597707]
[1693407600827,22.72078065,1704.7,1704.1,17.74597707]
[1693407601023,17.60084,1704.5,1704.1,2.6811]
[1693407601224,22.48132065,1704.5,1704.1,2.6811]
[1693407601427,4.88048065,1704.4,1703.7,5.86947]
[1693407601634,17.60436,1704.2,1703.7,2.6811]
[1693407601803,17.60436,1704.2,1703.7,3.7836951]
[1693407602005,17.60436,1704.2,1703.7,2.6811]
[1693407602006,2.87348065,1704.1,1703.7,2.6811]
[1693407602205,17.60583,1704.0,1703.7,2.6811]
[1693407602651,17.60583,1704.0,1703.7,8.55065]
[1693407602652,5.86867,1704.0,1703.7,8.55065]
[1693407603210,14.61082065,1704.0,1703.5,5.87011]
[1693407603505,2.87348065,1703.9,1703.4,8.41104]
[1693407603838,5.86924,1703.8,1703.4,15.709638]
[1693407604141,5.86898,1703.9,1703.4,21.580248]
[1693407604451,11.73805,1703.9,1703.4,21.580248]
[1693407604655,11.73805,1703.9,1703.4,15.709638]
[1693407604851,16.91643065,1703.9,1703.4,9.839198]
[1693407605152,2.87348065,1703.8,1703.4,2.5406]
[1693407605519,17.60892,1703.7,1703.4,2.5406]
[1693407605949,11.73928,1703.7,1703.4,2.5406]
[1693407606722,16.61976065,1703.7,1703.2,13.74229]
[1693407606931,2.87348065,1703.6,1703.1,14.27867]
[1693407607136,5.87035,1703.5,1703.1,16.503626]
[1693407607356,5.87035,1703.5,1703.1,10.632136]
[1693407607565,20.48444065,1703.5,1703.1,4.760656]
[1693407607870,14.61409065,1703.5,1703.1,8.40718]
[1693407608066,14.61409065,1703.5,1703.1,10.40718]
[1693407608259,8.74374065,1703.5,1703.1,16.27882]
[1693407608568,5.87026,1703.5,1703.1,16.27882]
[1693407608768,5.86999,1703.6,1703.1,31.14394065]
[1693407608968,29.98,1703.9,1703.4,2.0]
[1693407609269,35.84892,1703.9,1703.5,11.74018]
[1693407609571,5.86892,1703.9,1703.5,11.74018]
[1693407610470,8.09215,1704.1,1703.5,17.61044]
[1693407610700,5.86835,1704.1,1703.5,22.20104]
[1693407610871,5.86835,1704.1,1703.6,2.220104]
[1693407611039,5.86835,1704.1,1703.7,5.86945]
[1693407611240,11.73669,1704.1,1703.7,5.86945]
[1693407612540,34.987,1704.3,1703.7,7.86945]
[1693407612541,32.98,1704.3,1703.7,7.86945]
[1693407612875,32.98,1704.3,1703.7,21.61559]
[1693407612876,8.86765,1704.3,1703.7,21.61559]
[1693407613053,13.98744,1704.4,1703.9,11.73737]
[1693407613575,8.12002,1704.4,1703.9,11.73737]
[1693407613779,8.12002,1704.4,1703.9,14.29897]
[1693407614079,5.8669,1704.5,1703.9,33.16833065]
[1693407614379,5.8669,1704.5,1703.9,31.16133065]
[1693407614595,5.8669,1704.5,1704.0,3.11613307]
[1693407614596,11.73385,1704.5,1704.0,3.11613307]
[1693407614761,11.73385,1704.5,1704.0,5.86843]
[1693407615091,8.1196,1704.5,1704.0,11.73697]
[1693407615289,8.11952,1704.5,1704.0,17.60551]
[1693407615876,13.98634,1704.5,1704.0,17.60551]
[1693407616205,13.98634,1704.5,1704.0,11.73697]
[1693407616493,18.84511765,1704.5,1704.0,11.73697]
[1693407616789,24.71193765,1704.5,1704.0,11.73697]
[1693407617159,2.87348065,1704.4,1703.9,10.43039]
[1693407617464,2.007,1704.2,1703.6,8.089874]
[1693407617797,16.61742065,1704.1,1703.6,5.86977]
[1693407618005,16.61742065,1704.1,1703.3,5.87071]
[1693407618006,5.007,1704.0,1703.3,5.87071]
[1693407618293,17.60778,1703.8,1703.4,2.5729]
[1693407618497,2.87348065,1703.7,1703.4,2.5729]
[1693407618663,11.73984,1703.6,1703.4,2.5729]
[1693407619393,22.49024065,1703.6,1703.0,5.97182]
[1693407619892,11.74155,1703.4,1703.0,5.97193]
[1693407620598,11.74155,1703.4,1703.0,0.1]
[1693407620599,4.88048065,1703.3,1703.0,0.1]
[1693407620958,11.7426,1703.2,1703.0,0.1]
[1693407621159,19.86333107,1703.2,1703.0,0.1]
[1693407622772,11.74236,1703.3,1703.0,0.1]
[1693407622961,5.1132,1703.5,1703.1,2.0]
[1693407622962,5.87042,1703.5,1703.1,2.0]
[1693407623161,5.86999,1703.6,1703.2,5.87123]
[1693407623901,8.18279,1703.8,1703.3,2.0]
[1693407624191,5.86964,1703.7,1703.4,5.87047]
[1693407624395,8.18279,1703.8,1703.4,5.87047]
[1693407624560,11.73884,1703.8,1703.4,5.87047]
[1693407624757,11.73884,1703.8,1703.4,11.74108]
[1693407625099,5.86929,1703.8,1703.4,11.74108]
[1693407625395,5.86929,1703.8,1703.4,13.8984003]
[1693407626101,5.81929,1703.8,1703.4,13.8984003]
[1693407626284,14.56200065,1703.8,1703.3,9.832123]
[1693407626594,20.43123065,1703.8,1703.2,8.59417]
[1693407626757,20.43123065,1703.8,1703.2,14.46524]
[1693407627380,20.43123065,1703.8,1703.2,8.59397]
[1693407627664,2.87348065,1703.7,1703.2,8.59397]
[1693407627975,5.86976,1703.7,1703.2,20.33657]
[1693407628165,13.90316,1703.8,1703.4,5.87043]
[1693407628366,16.77664065,1703.8,1703.4,5.87043]
[1693407628763,2.87348065,1703.7,1703.3,5.8707]
[1693407628966,11.73998,1703.6,1703.2,8.59411]
[1693407629276,13.78829107,1703.6,1703.2,2.7229]
[1693407629485,11.73998,1703.6,1703.2,8.59414]
[1693407629687,5.86965,1703.7,1703.3,2.0]
[1693407629892,8.03374,1703.8,1703.4,11.74104]
[1693407630101,10.90722065,1703.8,1703.4,13.115144]
[1693407630301,16.77667065,1703.8,1703.4,5.87043]
[1693407630499,22.64612065,1703.8,1703.3,5.87075]
[1693407630699,22.64612065,1703.8,1703.2,8.594]
[1693407630700,2.87348065,1703.7,1703.2,8.594]
[1693407631004,17.61027,1703.6,1703.0,5.97196]
[1693407631193,2.87348065,1703.5,1703.0,5.97186]
[1693407631399,2.87348065,1703.6,1703.5,2.0]
[1693407631711,29.98,1704.1,1703.7,2.0]
[1693407632013,5.86766,1704.3,1703.7,2.0]
[1693407632174,29.98,1704.4,1703.7,2.0]
[1693407632373,17.6036,1704.2,1703.7,7.86937]
[1693407632568,5.86854,1704.0,1703.7,7.86937]
[1693407633420,5.86854,1704.0,1703.7,13.73894]
[1693407634297,11.73708,1704.0,1703.6,2.6649]
[1693407634604,17.60562,1704.0,1703.6,2.6649]
[1693407635274,17.60562,1704.0,1703.6,8.53467]
[1693407636375,17.60562,1704.0,1703.6,14.40459]
[1693407636701,20.47910065,1704.0,1703.6,2.6649]
[1693407637023,22.74682071,1704.0,1703.6,2.6649]
[1693407637404,2.87348065,1703.9,1703.6,2.6649]
[1693407637727,17.60769,1703.8,1703.4,5.87039]
[1693407638130,17.60769,1703.8,1703.3,14.44684]
[1693407638596,17.60769,1703.8,1703.3,2.7053]
[1693407638597,2.87348065,1703.7,1703.3,2.7053]
[1693407638928,11.73998,1703.6,1703.3,2.7053]
[1693407639222,8.74333065,1703.7,1703.3,8.57609]
[1693407639413,8.74328065,1703.7,1703.3,14.44704]
[1693407639814,5.86974,1703.7,1703.3,14.44704]
[1693407640018,11.73946,1703.7,1703.4,7.315194]
[1693407640192,8.07767,1703.8,1703.4,13.185804]
[1693407640556,5.86869,1704.0,1703.7,5.86944]
[1693407641028,11.73738,1704.0,1703.7,5.86944]
[1693407641394,5.86869,1704.0,1703.7,11.73901]
[1693407642003,0.603101,1704.3,1703.7,15.499876]
[1693407642216,5.86799,1704.2,1703.7,21.369446]
[1693407642398,5.86799,1704.2,1703.8,2.7785]
[1693407642620,11.73598,1704.2,1703.8,8.64747]
[1693407645042,2.1742,1704.3,1703.8,20.38593]
[1693407645245,8.04174,1704.3,1703.9,2.038593]
[1693407645541,8.04174,1704.3,1704.0,5.86849]
[1693407645712,13.90928,1704.3,1703.9,7.907373]
[1693407645913,22.65030065,1704.3,1703.8,14.5165]
[1693407646939,23.25402516,1704.3,1703.8,14.5165]
[1693407647916,16.78276065,1704.3,1703.8,14.5165]
[1693407648142,8.04174,1704.3,1703.8,20.38573]
[1693407648453,8.04174,1704.3,1703.9,2.038573]
[1693407648648,8.04174,1704.3,1704.0,11.73698]
[1693407648815,2.1742,1704.3,1704.0,11.73698]
[1693407649349,0.60372451,1704.5,1704.0,11.73698]
[1693407649646,5.86686,1704.5,1704.0,17.60552]
[1693407649818,5.86686,1704.5,1704.2,5.86778]
[1693407650017,0.60372451,1704.6,1704.2,7.86778]
[1693407650219,39.50138495,1704.7,1704.2,19.60348]
[1693407650522,30.58416998,1704.7,1704.2,31.17486065]
[1693407650731,0.60416998,1704.8,1704.5,11.73364]
[1693407651086,1.51042495,1704.9,1704.5,17.60046]
[1693407651395,0.60416998,1704.9,1704.6,8.99348065]
[1693407651649,1.38884394,1705.1,1704.6,8.99348065]
[1693407651650,0.60416998,1705.1,1704.7,19.59839]
[1693407651951,0.6003968,1705.1,1704.7,19.59839]
[1693407652155,0.60416998,1705.2,1704.8,1.959839]
[1693407652350,1.20405895,1705.2,1704.9,11.7308]
[1693407652738,6.77046497,1705.3,1704.9,11.7308]
[1693407652739,1.51042495,1705.3,1704.9,11.7308]
[1693407652944,1.20406897,1705.2,1704.9,11.7308]
[1693407653144,1.20406897,1705.2,1704.9,12.34165314]
[1693407653349,7.37454495,1705.3,1704.9,12.34165314]
[1693407653532,0.60416998,1705.3,1705.0,2.0]
[1693407653733,1.51042495,1705.4,1705.1,11.7295]
[1693407654057,0.60416998,1705.4,1705.1,11.7295]
[1693407654253,7.37393495,1705.5,1705.1,13.169769]
[1693407654443,1.51042495,1705.5,1705.1,19.034519]
[1693407654628,2.93339953,1705.5,1705.1,21.698319]
[1693407654822,0.60416998,1705.5,1705.1,21.698319]
[1693407655030,5.02727202,1705.5,1705.1,21.698319]
[1693407655224,0.70516998,1705.6,1705.2,2.1698319]
[1693407655447,0.70516998,1705.6,1705.3,17.59207]
[1693407655958,0.101,1705.6,1705.3,17.59207]
[1693407658463,0.101,1705.6,1705.4,2.0]
[1693407658757,0.101,1705.6,1705.5,17.59014]
[1693407658960,0.101,1705.6,1705.5,19.549154]
[1693407661961,0.101,1705.6,1705.5,28.54263465]
[1693407662143,0.101,1705.6,1705.5,19.549154]
[1693407663540,0.101,1705.6,1705.5,22.42263465]
[1693407663966,0.101,1705.6,1705.5,19.549154]
[1693407664175,0.101,1705.6,1705.5,13.685774]
[1693407664392,0.101,1705.6,1705.5,19.549154]
[1693407664977,0.101,1705.6,1705.4,7.86342]
[1693407665174,0.101,1705.6,1705.3,5.86386]
[1693407665374,11.82706,1705.6,1705.2,8.0341419]
[1693407665617,11.82706,1705.6,1705.1,3.440269]
[1693407665618,20.56357065,1705.6,1705.1,3.440269]
[1693407665739,5.86379,1705.4,1705.1,2.0]
[1693407665942,5.86361,1705.5,1705.1,13.72947]
[1693407666166,5.86361,1705.5,1705.1,19.59422]
[1693407666374,11.72714,1705.5,1705.2,7.823832]
[1693407666773,11.72714,1705.5,1705.2,1.959422]
[1693407666945,11.72714,1705.5,1705.1,7.86457]
[1693407666946,11.72714,1705.5,1705.1,13.72914]
[1693407667155,11.72714,1705.5,1705.1,7.86457]
[1693407667586,14.60062065,1705.5,1705.0,5.86494]
[1693407667785,8.74948065,1705.4,1704.7,7.86595]
[1693407668091,8.74948065,1705.4,1704.6,5.86631]
[1693407668092,17.59332,1705.2,1704.6,5.86631]
[1693407668294,20.46680065,1705.2,1704.6,5.86631]
[1693407669260,2.87348065,1705.1,1704.5,4.5214]
[1693407669655,17.59602,1705.0,1704.5,2.5214]
[1693407669880,11.7317,1704.8,1704.5,2.5214]
[1693407670665,20.47103065,1704.8,1704.3,2.0]
[1693407670862,17.60025,1704.6,1704.0,5.86839]
[1693407671080,11.73488,1704.4,1703.9,10.52069]
[1693407671263,17.60232,1704.4,1703.9,10.52069]
[1693407671464,17.60232,1704.4,1704.0,1.052069]
[1693407671689,17.60232,1704.4,1703.9,2.652]
[1693407671690,20.47580065,1704.4,1703.9,2.652]
[1693407672500,20.47580065,1704.4,1703.6,5.86975]
[1693407672501,2.87348065,1704.3,1703.5,7.87008]
[1693407672810,17.60491,1704.1,1703.6,8.42362]
[1693407672948,17.60491,1704.1,1703.6,14.29354]
[1693407673350,11.73658,1704.1,1703.6,14.29354]
[1693407673687,11.73658,1704.1,1703.7,7.298904]
[1693407673849,5.86825,1704.1,1703.7,7.298904]
[1693407674055,11.73658,1704.1,1703.7,1.429354]
[1693407674281,17.60491,1704.1,1703.6,2.5538]
[1693407674485,17.60491,1704.1,1703.6,8.42355]
[1693407674706,17.60491,1704.1,1703.6,2.5538]
[1693407675011,17.60491,1704.1,1703.6,14.29364]
[1693407675178,17.60491,1704.1,1703.6,8.42372]
[1693407675382,17.60491,1704.1,1703.6,10.053097]
[1693407675602,17.60491,1704.1,1703.7,2.0]
[1693407676282,11.19763,1704.2,1703.7,13.73905]
[1693407676577,8.19763,1704.2,1703.7,19.60862]
[1693407676781,8.19763,1704.2,1703.8,1.960862]
[1693407677088,8.19763,1704.2,1703.8,13.698922]
[1693407677287,8.19763,1704.2,1703.4,5.87046]
[1693407677288,5.87348065,1704.1,1703.4,5.87046]
[1693407677489,17.60676,1703.9,1703.3,2.6934]
[1693407677689,2.87348065,1703.8,1703.3,2.6934]
[1693407677996,17.60925,1703.7,1703.3,2.6934]
[1693407678195,8.74285065,1703.8,1703.3,2.6934]
[1693407678196,8.86892,1703.9,1703.4,2.0]
[1693407678397,5.86937,1703.8,1703.4,2.0]
[1693407678600,5.8696,1703.7,1703.6,2.0]
[1693407678982,5.8696,1703.7,1703.4,13.741]
[1693407679181,5.8696,1703.7,1703.5,1.3741]
[1693407679380,17.60877,1703.7,1703.3,2.6934]
[1693407680075,20.48225065,1703.7,1703.3,2.6934]
[1693407681627,2.87348065,1703.6,1703.0,7.97177]
[1693407681911,11.74084,1703.5,1703.2,2.0]
[1693407682080,5.8703,1703.5,1703.2,7.87111]
[1693407682284,11.74084,1703.5,1703.2,4.213815]
[1693407682476,11.74084,1703.5,1703.1,8.3955]
[1693407682781,5.87348065,1703.4,1703.0,0.1]
[1693407682993,17.61306,1703.3,1703.0,0.1]
[1693407683216,20.48654065,1703.3,1703.0,0.1]
[1693407683585,17.61306,1703.3,1703.0,0.1]
[1693407683781,11.74204,1703.3,1703.0,2.1]
[1693407683989,11.74204,1703.3,1703.0,2.897226]
[1693407684186,11.74204,1703.3,1703.0,0.897226]
[1693407684912,17.61306,1703.3,1703.0,0.1]
[1693407685285,5.87068,1703.4,1703.0,2.1]
[1693407685516,2.2488,1703.5,1703.2,2.0]
[1693407685681,8.11909,1703.5,1703.2,7.87115]
[1693407686494,2.2488,1703.5,1703.2,13.74245]
[1693407686713,2.2488,1703.5,1703.3,1.374245]
[1693407686901,2.2488,1703.5,1703.3,7.245125]
[1693407687102,5.86968,1703.7,1703.4,2.0]
[1693407687424,11.73942,1703.7,1703.4,7.8706]
[1693407687624,11.73942,1703.7,1703.4,2.0]
[1693407688091,2.87348065,1703.6,1703.2,2.0]
[1693407688290,11.74059,1703.5,1703.0,10.69348]
[1693407688599,17.61092,1703.5,1703.0,18.509451]
[1693407689020,20.48440065,1703.5,1703.0,12.637571]
[1693407689399,2.87348065,1703.4,1703.0,6.765781]
[1693407689621,5.87102,1703.3,1703.0,6.765781]
[1693407689809,5.87102,1703.3,1703.0,4.765781]
[1693407690137,5.87102,1703.3,1703.0,2.8216]
[1693407690330,5.87102,1703.3,1703.0,4.8216]
[1693407690836,11.74172,1703.4,1703.0,16.5655]
[1693407691422,14.61520065,1703.4,1703.0,2.8216]
[1693407691625,8.74428065,1703.4,1703.0,2.8216]
[1693407691827,14.61515065,1703.4,1703.0,2.8216]
[1693407691999,14.61515065,1703.4,1703.0,8.69352]
[1693407692203,14.61515065,1703.4,1703.0,9.62987979]
[1693407692834,14.61515065,1703.4,1703.0,2.8216]
[1693407693026,3.0,1703.3,1703.0,2.8216]
[1693407693225,5.8713,1703.2,1703.0,2.8216]
[1693407693603,5.87119,1703.3,1703.0,10.69352]
[1693407693814,5.87119,1703.3,1703.0,12.937303]
[1693407694829,3.0,1703.6,1703.0,12.937303]
[1693407695034,3.0,1703.5,1703.0,22.4375]
[1693407695339,11.73941,1703.7,1703.2,13.74244]
[1693407695541,3.0,1703.6,1703.2,13.74244]
[1693407695752,14.61291065,1703.7,1703.3,1.374244]
[1693407695907,14.61291065,1703.7,1703.3,7.245064]
[1693407697535,20.48274065,1703.7,1703.2,13.7423]
[1693407697734,20.48274065,1703.7,1703.2,2.0]
[1693407697924,5.87348065,1703.6,1703.0,16.56529]
[1693407698129,11.74108,1703.5,1703.0,2.8216]
[1693407698327,20.43510065,1703.5,1703.0,10.150123]
[1693407700265,2.87348065,1703.4,1703.0,4.278193]
[1693407700425,5.87102,1703.3,1703.0,4.278193]
[1693407700824,3.0,1703.6,1703.2,2.0]
[1693407701043,8.86996,1703.6,1703.2,5.87112]
[1693407701245,8.86996,1703.6,1703.3,0.587112]
[1693407701417,3.0,1703.6,1703.3,6.458032]
[1693407701620,16.96638,1703.8,1703.3,12.328982]
[1693407702061,2.87348065,1703.7,1703.3,0.587112]
[1693407702219,11.73998,1703.6,1703.1,5.87151]
[1693407702427,3.0,1703.5,1703.0,8.69344]
[1693407702757,11.7426,1703.2,1703.0,0.1]
[1693407702918,20.48738065,1703.2,1703.0,0.1]
[1693407703552,2.87348065,1703.1,1703.0,0.1]
[1693407703755,4.88548065,1703.1,1703.0,0.1]
[1693407703933,11.74328,1703.1,1703.0,0.1]
[1693407704139,5.87164,1703.1,1703.0,0.1]
[1693407704471,27.26185565,1703.1,1703.0,0.1]
[1693407705686,27.74185565,1703.1,1703.0,0.1]
[1693407705890,28.32391544,1703.1,1703.0,0.1]
[1693407706863,29.46082144,1703.1,1703.0,0.1]
[1693407707392,27.44882144,1703.1,1703.0,0.1]
[1693407709341,5.878,1703.0,1702.5,0.1]
[1693407709617,2.878,1702.7,1702.5,0.1]
[1693407709790,20.49359065,1702.6,1702.5,0.1]
[1693407710697,14.62022065,1702.6,1702.5,0.1]
[1693407711114,5.87337,1702.6,1702.5,0.1]
[1693407711520,11.74674,1702.6,1702.5,0.1]
[1693407712200,5.87337,1702.6,1702.5,0.1]
[1693407713099,24.66823965,1702.6,1702.5,0.1]
[1693407713298,27.54623965,1702.6,1702.5,0.1]
[1693407713618,28.02623965,1702.6,1702.5,0.1]
[1693407713788,24.66823965,1702.6,1702.5,0.1]
[1693407713993,11.74674,1702.6,1702.5,0.1]
[1693407714693,14.62022065,1702.6,1702.5,0.1]
[1693407715287,5.87337,1702.6,1702.5,0.1]
[1693407715486,11.18442,1702.8,1702.5,0.1]
[1693407715735,19.93091065,1702.8,1702.5,0.1]
[1693407716092,3.0,1702.8,1702.5,8.853599]
[1693407716326,12.22167645,1702.9,1702.5,8.853599]
[1693407716327,5.87243,1702.9,1702.5,8.853599]
[1693407716522,5.87271,1702.8,1702.5,8.853599]
[1693407717023,5.87271,1702.8,1702.5,2.979949]
[1693407717322,11.74542,1702.8,1702.5,2.1]
[1693407717831,5.87271,1702.8,1702.5,7.97367]
[1693407718323,17.61807,1702.8,1702.5,0.1]
[1693407718524,20.49607,1702.8,1702.5,0.1]
[1693407719226,17.61807,1702.8,1702.5,0.1]
[1693407720696,23.12794872,1702.8,1702.5,0.1]
[1693407721122,3.0,1702.7,1702.5,0.1]
[1693407721318,17.62011,1702.6,1702.5,0.1]
[1693407721493,20.49359065,1702.6,1702.5,0.1]
[1693407723414,23.49359065,1702.6,1702.5,0.1]
[1693407723618,26.73026472,1702.6,1702.5,0.1]
[1693407724219,30.08826472,1702.6,1702.5,0.1]
[1693407724526,30.08826472,1702.6,1702.4,0.1]
[1693407724527,33.08826472,1702.6,1702.4,0.1]
[1693407724728,9.81354044,1702.5,1702.4,0.1]
[1693407725057,3.0,1702.3,1702.2,0.1]
[1693407725223,36.31114044,1702.3,1702.2,0.1]
[1693407725421,26.95674044,1702.3,1702.2,0.1]
[1693407725618,17.62228065,1702.3,1702.2,0.1]
[1693407725828,23.49668065,1702.3,1702.2,0.1]
[1693407726034,26.42448412,1702.3,1702.2,0.1]
[1693407726240,29.30248412,1702.3,1702.2,0.1]
[1693407726444,39.59270017,1702.3,1702.2,0.1]
[1693407726865,39.01064038,1702.3,1702.2,0.1]
[1693407727156,35.17688412,1702.3,1702.2,0.1]
[1693407727359,28.82248412,1702.3,1702.2,0.1]
[1693407727765,29.05774212,1702.3,1702.2,0.1]
[1693407730336,26.17974212,1702.3,1702.2,0.1]
[1693407730559,25.94448412,1702.3,1702.2,0.1]
[1693407732349,34.31488412,1702.3,1701.9,0.09577125]
[1693407732571,2.016,1702.0,1701.9,0.09577125]
[1693407732778,22.51580065,1702.0,1701.9,0.09577125]
[1693407732937,25.51580065,1702.0,1701.9,0.09577125]
[1693407733462,25.99580065,1702.0,1701.9,0.09577125]
[1693407734947,25.51580065,1702.0,1701.9,0.09577125]
[1693407735146,28.60489471,1702.0,1701.9,0.09577125]
[1693407735449,28.60489471,1702.0,1701.9,0.04577125]
[1693407735648,29.08489471,1702.0,1701.9,0.04577125]
[1693407735843,28.60489471,1702.0,1701.9,0.04577125]
[1693407736247,23.49980065,1702.0,1701.9,0.04577125]
[1693407737244,11.74892065,1702.0,1701.9,0.04577125]
[1693407737450,17.62436065,1702.0,1701.9,0.04577125]
[1693407738063,14.75088,1702.0,1701.9,0.04577125]